{"text_format":"1","workbook":"xlsx","n_sheets":1,"sheets":["Form_44"],"not_rendered":{"charts":0,"images":2,"macros":1,"external_links":2,"defined_names":13,"comments":1,"pivot_tables":0},"unopened":[],"bounds":{"document_bytes":16777216,"sheet_cells":100000,"rows_first":2000,"rows_last":500,"rows_between":2000,"halvings":0,"cell_chars":16384,"cell_head_chars":4096},"cells_cut":0,"cells_raw":0,"read":"whole","date_system":"1900"}

{"sheet":"Form_44","index":0,"n_rows":53,"n_cols":28,"rows_kept":53,"cut":false,"hidden":false,"merged":[[1,15,1,16],[2,0,2,16],[3,0,3,16],[1,0,1,13],[8,16,10,16],[7,7,7,16],[4,0,4,16],[8,14,10,14],[8,11,10,11],[5,0,5,16],[8,0,10,0],[8,13,10,13],[8,1,9,1],[8,15,10,15],[6,0,6,16],[8,12,10,12],[46,0,46,14],[47,1,47,10],[53,11,53,16],[48,11,52,16],[47,11,47,16],[50,1,51,10],[52,9,53,10],[52,1,53,8]]}
[]
["jktLFkku ljdkj\nçkfof/kd f'k{kk e.My] jktLFkku] tks/kiqj \nijh{kk l= 2019&20 ¼ ukWu&bath-½",null,null,null,null,null,null,null,null,null,null,null,null,null,null,"ikfjJfed foi=&44",null,null,null,null,null,null,0,null,null,null,0,11]
["ijh{kk dsUnz @laLFkku dk uke ,oa iwjk irk--------------------------------------------------------------------------------------------------------------------------------------------------- ijh{kk dsUnz dksM----------------------------------------------------------------------------------------------",null,null,null,null,null,null,null,null,null,null,null,null,null,null,null,null,null,null,null,null,null,1,null,null,null,1,12]
["ijh{kk dsUnz@laLFkku ds cSad dk uke ------------------------------------------------------------------------  [kkrk la[;k ------------------------------------- \nlaLFkku dk isu uEcj------------------------------------ vkbZ,Q,llh dksM------------------------------------------------",null,null,null,null,null,null,null,null,null,null,null,null,null,null,null,null,null,null,null,null,null,2,null,null,null,2,13]
[null,null,null,null,null,null,null,null,null,null,null,null,null,null,null,null,null,null,null,null,null,null,null,null,null,null,null,14]
["¼1½ dkWye dksM es ijh{kk dsUnz v/kh{kd gsrq 11] vfrfjDr ijh{kk dsUnzz  v/kh{kd gsrq 12] ijh{kk oh{kd gsrq 13] Eak=kyf;d gsrq 14 ,oa prqFkZ Js.kh deZpkjh gsrq 15 vafdr djsaA",null,null,null,null,null,null,null,null,null,null,null,null,null,null,null,null,null,null,null,null,null,null,null,null,null,null,15]
["¼2½ fnukad @ikjh okys dkWye esa mifLFkfr fnol @ ikjh ds fnu 1 vafdr djsa vuqifLFfr ij 0 vafdr djsaA dqy jkf'k okys dkWye  esa x.kuk Lor% gh gksxhA vr% bl dkWye esa dqN vafdr ugha djsA"]
[null,null,null,null,null,null,null,"Exam Date"]
["SN.","\n","EXAM DATE","17.03.2020","18.03.2020","19.03.2020","21.03.2020","2020-09-16","2020-09-18","2020-09-21","2020-09-23","EXTRA-BEFORE","EXTRA-AFTER","TOTAL SESSIONS","RATE","TOTAL AMOUNT","SIGNATURE"]
[null,null,"SHIFT","I","I","I","I","I","I","I","I"]
[null,null,"STUDENT STRENGTH"]
[null,"Officer/Employee name in capital letters with designation","CODE"]
[null,null,null,null,null,null,null,null,null,null,null,null,null,{"$f":"SUM(H13:M13)","v":0},null,{"$f":"IF(C13=\"\",0,IF(B13=\"\",0,IF(C13=11,N13*100,IF(C13=12,N13*75,IF(C13=13,ROUND(N13*70,0),IF(C13=14,N13*40,IF(C13=15,N13*30)))))))","v":0}]
[null,null,null,null,null,null,null,null,null,null,null,null,null,{"$f":"SUM(H14:M14)","v":0},null,0]
[null,null,null,null,null,null,null,null,null,null,null,null,null,{"$f":"SUM(H15:M15)","v":0},null,0]
[null,null,null,null,null,null,null,null,null,null,null,null,null,0,null,0]
[null,null,null,null,null,null,null,null,null,null,null,null,null,{"$f":"SUM(H17:M17)","v":0},null,0]
[null,null,null,null,null,null,null,null,null,null,null,null,null,0,null,0]
[null,null,null,null,null,null,null,null,null,null,null,null,null,0,null,0]
[null,null,null,null,null,null,null,null,null,null,null,null,null,0,null,0]
[null,null,null,null,null,null,null,null,null,null,null,null,null,0,null,0]
[null,null,null,null,null,null,null,null,null,null,null,null,null,0,null,0]
[null,null,null,null,null,null,null,null,null,null,null,null,null,0,null,0]
[null,null,null,null,null,null,null,null,null,null,null,null,null,0,null,0]
[null,null,null,null,null,null,null,null,null,null,null,null,null,0,null,0]
[null,null,null,null,null,null,null,null,null,null,null,null,null,0,null,0]
[null,null,null,null,null,null,null,null,null,null,null,null,null,0,null,0]
[null,null,null,null,null,null,null,null,null,null,null,null,null,0,null,0]
[null,null,null,null,null,null,null,null,null,null,null,null,null,0,null,0]
[null,null,null,null,null,null,null,null,null,null,null,null,null,0,null,0]
[null,null,null,null,null,null,null,null,null,null,null,null,null,0,null,0]
[null,null,null,null,null,null,null,null,null,null,null,null,null,0,null,0]
[null,null,null,null,null,null,null,null,null,null,null,null,null,0,null,0]
[null,null,null,null,null,null,null,null,null,null,null,null,null,0,null,0]
[null,null,null,null,null,null,null,null,null,null,null,null,null,0,null,0]
[null,null,null,null,null,null,null,null,null,null,null,null,null,0,null,0]
[null,null,null,null,null,null,null,null,null,null,null,null,null,0,null,0]
[null,null,null,null,null,null,null,null,null,null,null,null,null,0,null,0]
[null,null,null,null,null,null,null,null,null,null,null,null,null,0,null,0]
[null,null,null,null,null,null,null,null,null,null,null,null,null,{"$f":"SUM(H40:M40)","v":0},null,0]
[null,null,null,null,null,null,null,null,null,null,null,null,null,0,null,0]
[null,null,null,null,null,null,null,null,null,null,null,null,null,0,null,0]
[null,null,null,null,null,null,null,null,null,null,null,null,null,0,null,0]
[null,null,null,null,null,null,null,null,null,null,null,null,null,0,null,0]
[null,null,null,null,null,null,null,null,null,null,null,null,null,{"$f":"SUM(H45:M45)","v":0},null,0]
[null,null,null,null,null,null,null,null,null,null,null,null,null,0,null,0]
["Grand Total",null,null,null,null,null,null,null,null,null,null,null,null,null,null,{"$f":"SUM(P13:P46)","v":0}]
[null,"No.                     e.My dk;kZy; ç;ksxkFkZ\nfnukad                     çekf.kr ,oa ikfjr \n\n"]
[null,"dqy :Ik;s vadks esa",{"$f":"+P47","v":0}]
[null,"dqy :Ik;s 'kCnksa esa ",{"$f":"IF(P47>0, SUBSTITUTE(spellnumber(P47),\"Dollars and No Cents\",\"only\"),\"Rupees ….Nil ….\")","v":"Rupees ….Nil …."}]
[null,"izekf.kr fd;k tkrk gS fd  Hkqxrku gsrq ;g fcy izFke ckj izLrqr fd;k x;k gSA\n\n\n\nizHkkjh vf/kdkjh                    izHkkjh                             fyfid "]
[]
[null,"la;qDr funs'kd ¼jftLVªkj½]",null,null,null,null,null,null,null,"dk;kZy;k/;{k"]